fUST/lending_fUST_20260106
["ID","MTS","AMOUNT","RATE_DAILY","PERIOD"]
[400486313,1767654186988,500.0,0.00030136,120]
[400486314,1767654187069,500.0,0.00030136,120]
[400486315,1767654187292,509.97228338,0.00030136,120]
[400486316,1767654187377,500.0,0.00030136,120]
[400486317,1767654187511,500.0,0.00030136,120]
[400486318,1767654187582,500.0,0.00030136,120]
[400486319,1767654187745,641.70967608,0.00030136,120]
[400486320,1767654187815,500.0,0.00030136,120]
[400486321,1767654188006,231.84,0.00030136,120]
[400486323,1767654194651,500.0,0.00030136,120]
[400486324,1767654194903,539.09874618,0.00030136,120]
[400486325,1767654197033,502.20675066,0.00030136,120]
[400486326,1767654198697,500.0,0.00030136,120]
[400486327,1767654198779,500.0,0.00030136,120]
[400486328,1767654198856,500.0,0.00030136,120]
[400486329,1767654198933,457.05606754,0.00030136,120]
[400486330,1767654199040,508.75658163,0.00030136,120]
[400486331,1767654199117,500.0,0.00030136,120]
[400486332,1767654199264,163.88910431,0.00030136,120]
[400486333,1767654203220,346.62917585,0.00030136,120]
[400486334,1767654204136,399.76,0.00030136,120]
[400486335,1767654205316,502.15998492,0.00030136,120]
[400486336,1767654206186,500.0,0.00030136,120]
[400486337,1767654206250,500.0,0.00030136,120]
[400486338,1767654206485,523.48540879,0.00030136,120]
[400486339,1767654206554,500.0,0.00030136,120]
[400486340,1767654206780,500.0,0.00030136,120]
[400486341,1767654207004,406.14775726,0.00030136,120]
[400486342,1767654208466,500.0,0.00030136,120]
[400486343,1767654208699,552.70006857,0.00030136,120]
[400486344,1767654208848,500.0,0.00030136,120]
[400486345,1767654209081,517.34682501,0.00030136,120]
[400486346,1767654210640,500.0,0.00030136,120]
[400486347,1767654210875,538.18088175,0.00030136,120]
[400486348,1767654214225,500.0,0.00030136,120]
[400486349,1767654214517,226.24573012,0.00030136,120]
[400486350,1767654216322,500.0,0.00030136,120]
[400486351,1767654216776,500.0,0.00030136,120]
[400486352,1767654225051,501.80923438,0.00030136,120]
[400486353,1767654228215,500.0,0.00030136,120]
[400486354,1767654228403,500.0,0.00030136,120]
[400486355,1767654228473,512.59318787,0.00030136,120]
[400486356,1767654230945,500.0,0.00030136,120]
[400486357,1767654231176,500.0,0.00030136,120]
[400486358,1767654231680,532.93048493,0.00030136,120]
[400486359,1767654236024,500.0,0.00030136,120]
[400486360,1767654236260,500.0,0.00030136,120]
[400486361,1767654237366,500.0,0.00030136,120]
[400486362,1767654237600,512.2579063,0.00030136,120]
[400486363,1767654238443,500.0,0.00030136,120]
[400486364,1767654238702,505.91537988,0.00030136,120]
[400486365,1767654240549,500.0,0.00030136,120]
[400486366,1767654240802,500.0,0.00030136,120]
[400486367,1767654241017,500.0,0.00030136,120]
[400486368,1767654241262,500.0,0.00030136,120]
[400486369,1767654241570,352.54,0.00030136,120]
[400486370,1767654243099,500.0,0.00030136,120]
[400486371,1767654243327,428.9,0.00030136,120]
[400486372,1767654243408,517.1102156,0.00030136,120]
[400486373,1767654243874,500.0,0.00030136,120]
[400486374,1767654244108,500.0,0.00030136,120]
[400486375,1767654249151,500.0,0.00030136,120]
[400486376,1767654249792,500.0,0.00030136,120]
[400486377,1767654250062,647.03109685,0.00030136,120]
[400486378,1767654252264,500.0,0.00030136,120]
[400486379,1767654252521,500.0,0.00030136,120]
[400486380,1767654262420,500.0,0.00030136,120]
[400486381,1767654264234,500.0,0.00030136,120]
[400486382,1767654265960,500.0,0.00030136,120]
[400486383,1767654266174,500.0,0.00030136,120]
[400486384,1767654273187,500.0,0.00030136,120]
[400486385,1767654273571,500.0,0.00030136,120]
[400486386,1767654275284,500.0,0.00030136,120]
[400486387,1767654275356,500.0,0.00030136,120]
[400486388,1767654275530,529.17142676,0.00030136,120]
[400486389,1767654275778,500.0,0.00030136,120]
[400486390,1767654275853,553.18306756,0.00030136,120]
[400486391,1767654276805,-473.63410708,9.3e-05,2]
[400486392,1767654278278,420.1873,0.00030136,120]
[400486393,1767654279257,-217.57988734,9.3e-05,2]
[400486394,1767654280429,772.4881738,9.274e-05,2]
[400486395,1767654290887,500.0,0.00030136,120]
[400486396,1767654291027,447.56555809,0.00030136,120]
[400486397,1767654291113,500.0,0.00030136,120]
[400486398,1767654291377,400.26090298,0.00030136,120]
[400486399,1767654292632,504.09389399,0.00030136,120]
[400486400,1767654295088,500.0,0.00030136,120]
[400486401,1767654295349,500.0,0.00030136,120]
[400486402,1767654295590,516.3949581,0.00030136,120]
[400486403,1767654297384,500.0,0.00030136,120]
[400486404,1767654297642,510.90038333,0.00030136,120]
[400486405,1767654300635,500.0,0.00030136,120]
[400486406,1767654300918,632.92286663,0.00030136,120]
[400486407,1767654302669,500.0,0.00030136,120]
[400486408,1767654302894,500.0,0.00030136,120]
[400486409,1767654303147,500.0,0.00030136,120]
[400486410,1767654303638,500.93055271,0.00030136,120]
[400486411,1767654307039,500.0,0.00030136,120]
[400486412,1767654307280,500.0,0.00030136,120]
[400486413,1767654307522,500.0,0.00030136,120]
[400486414,1767654309322,500.0,0.00030136,120]
[400486415,1767654309551,616.33917725,0.00030136,120]
[400486416,1767654310496,504.47009216,0.00030136,120]
[400486417,1767654311950,500.0,0.00030136,120]
[400486418,1767654312222,415.76738619,0.00030136,120]
[400486419,1767654315383,500.0,0.00030136,120]
[400486420,1767654315619,509.27336227,0.00030136,120]
[400486421,1767654318403,500.0,0.00030136,120]
[400486422,1767654318639,500.0,0.00030136,120]
[400486423,1767654318888,500.0,0.00030136,120]
[400486424,1767654319075,502.61841516,0.00030136,120]
[400486425,1767654322316,500.0,0.00030136,120]
[400486426,1767654322563,633.11,0.00030136,120]
[400486427,1767654324402,500.0,0.00030136,120]
[400486428,1767654324652,500.0,0.00030136,120]
[400486429,1767654324896,502.52088586,0.00030136,120]
[400486430,1767654327808,500.0,0.00030136,120]
[400486431,1767654331433,582.74715091,0.00030136,120]
[400486433,1767654346535,500.0,0.00030136,120]
[400486434,1767654346820,503.70738354,0.00030136,120]
[400486435,1767654348008,503.62542377,0.00030136,120]
[400486436,1767654349043,500.0,0.00030136,120]
[400486437,1767654349270,522.36094945,0.00030136,120]
[400486438,1767654351335,502.90467212,0.00030136,120]
[400486439,1767654353110,502.94056573,0.00030136,120]
[400486440,1767654356915,500.0,0.00030136,120]
[400486441,1767654359674,500.0,0.00030136,120]
[400486442,1767654365566,500.0,0.00030136,120]
[400486443,1767654375332,500.0,0.00030136,120]
[400486444,1767654376807,502.06571325,0.00030136,120]
[400486445,1767654385655,500.0,0.00030136,120]
[400486446,1767654385925,499.96942374,0.00030136,120]
[400486447,1767654387208,500.0,0.00030136,120]
[400486448,1767654387456,501.40399168,0.00030136,120]
[400486449,1767654392926,500.0,0.00030136,120]
[400486450,1767654393028,508.62925501,0.00030136,120]
[400486451,1767654399857,500.0,0.00030136,120]
[400486452,1767654408138,500.0,0.00030136,120]
[400486453,1767654408236,500.0,0.00030136,120]
[400486454,1767654411111,500.0,0.00030136,120]
[400486455,1767654411379,523.58993271,0.00030136,120]
[400486456,1767654414298,500.0,0.00030136,120]
[400486457,1767654419340,500.0,0.00030136,120]
[400486458,1767654419580,502.6323255,0.00030136,120]
[400486459,1767654419671,500.0,0.00030136,120]
[400486460,1767654419937,511.26524965,0.00030136,120]
[400486461,1767654432456,500.0,0.00030136,120]
[400486462,1767654432635,500.0,0.00030136,120]
[400486463,1767654432709,524.56076186,0.00030136,120]
[400486464,1767654432867,502.81810693,0.00030136,120]
[400486465,1767654435567,520.0,0.00030136,120]
[400486467,1767654440046,500.0,0.00030136,120]
[400486468,1767654440290,500.0,0.00030136,120]
[400486469,1767654440753,562.43235834,0.00030136,120]
[400486471,1767654444070,481.81536995,0.00030136,120]
[400486472,1767654447725,500.0,0.00030136,120]
[400486473,1767654447957,501.12594566,0.00030136,120]
[400486474,1767654457316,-288.33467233,9.3e-05,2]
[400486475,1767654460191,342.75890706,0.00030136,120]
[400486476,1767654462388,-217.69501786,9.3e-05,2]
[400486477,1767654468068,500.0,0.00030136,120]
[400486478,1767654468291,500.0,0.00030136,120]
[400486479,1767654468518,521.71347393,0.00030136,120]
[400486480,1767654468973,500.0,0.00030136,120]
[400486481,1767654469226,508.80149977,0.00030136,120]
[400486482,1767654469286,-299.4708146,9.3e-05,2]
[400486483,1767654480609,500.0,0.00030136,120]
[400486484,1767654480843,531.66008079,0.00030136,120]
[400486485,1767654481771,500.0,0.00030136,120]
[400486486,1767654482044,502.58494286,0.00030136,120]
[400486487,1767654494336,500.0,0.00030136,120]
[400486488,1767654494563,503.25942079,0.00030136,120]
[400486490,1767654494756,500.0,0.00030136,120]
[400486491,1767654494987,500.0,0.00030136,120]
[400486492,1767654496343,500.0,0.00030136,120]
[400486493,1767654496610,511.55491319,0.00030136,120]
[400486494,1767654499168,500.0,0.00030136,120]
[400486495,1767654499420,500.0,0.00030136,120]
[400486496,1767654499646,502.40275541,0.00030136,120]
[400486497,1767654507274,349.98672897,0.00030136,120]
[400486498,1767654510966,500.0,0.00030136,120]
[400486499,1767654511428,513.90830766,0.00030136,120]
[400486500,1767654512274,500.0,0.00030136,120]
[400486501,1767654512372,515.86155011,0.00030136,120]
[400486502,1767654518192,500.0,0.00030136,120]
[400486503,1767654518438,632.44151359,0.00030136,120]
[400486504,1767654519226,500.0,0.00030136,120]
[400486505,1767654519478,500.0,0.00030136,120]
[400486506,1767654519815,500.0,0.00030136,120]
[400486507,1767654529602,500.0,0.00030136,120]
[400486508,1767654531844,500.0,0.00030136,120]
[400486509,1767654532106,500.0,0.00030136,120]
[400486510,1767654532321,500.0,0.00030136,120]
[400486511,1767654543619,500.0,0.00030136,120]
[400486512,1767654544044,244.26618026,0.00030136,120]
[400486513,1767654545648,385.92138466,0.00030136,120]
[400486514,1767654547872,501.80723732,0.00030136,120]
[400486515,1767654556737,504.33790089,0.00030136,120]
[400486516,1767654560061,459.12,0.00030136,120]
[400486517,1767654562254,500.0,0.00030136,120]
[400486518,1767654562511,513.94182476,0.00030136,120]
[400486519,1767654576727,-264.77640058,9.3e-05,2]
[400486520,1767654581042,-243.87176837,9.3e-05,2]
[400486521,1767654584929,524.55035666,0.00030136,120]
[400486522,1767654590936,504.58316717,0.00030136,120]
[400486523,1767654601687,500.0,0.00030136,120]
[400486524,1767654602200,269.0403738,0.00030136,120]
[400486525,1767654602687,504.09093691,0.00030136,120]
[400486526,1767654604485,370.17756149,0.00030136,120]
[400486527,1767654604918,500.0,0.00030136,120]
[400486528,1767654605153,500.0,0.00030136,120]
[400486529,1767654606440,568.55124299,0.00030136,120]
[400486530,1767654606717,-292.06183105,9.3e-05,2]
[400486531,1767654606740,-35.11136632,9.3e-05,2]
[400486532,1767654609337,-247.08651175,9.3e-05,2]
[400486533,1767654615300,-162.80417892,9.3e-05,2]
[400486534,1767654619698,564.89358178,0.00030136,120]
[400486535,1767654627944,500.0,0.00030136,120]
[400486542,1767654631996,-104.99794301,9.3e-05,2]
[400486543,1767654632007,-281.97380424,9.4e-05,2]
[400486545,1767654632017,-613.02825275,9.7e-05,2]
[400486550,1767654632057,-187.68174725,9.7e-05,2]
[400486552,1767654632067,-207.46766639,9.8e-05,2]
[400486554,1767654632076,-500.0,9.8e-05,2]
[400486557,1767654632086,-500.0,9.8e-05,2]
[400486559,1767654632096,-257.07800029,9.8e-05,2]
[400486561,1767654632105,-1200.0,9.949e-05,2]
[400486562,1767654632114,-300.0,9.949e-05,2]
[400486565,1767654632123,-300.0,9.95e-05,2]
[400486567,1767654632133,-300.0,9.95e-05,2]
[400486569,1767654632142,-1174.16938676,9.951e-05,2]
[400486570,1767654632151,-1200.0,9.951e-05,2]
[400486573,1767654632161,-4155.4339718,9.952e-05,2]
[400486575,1767654632171,-1132.69608497,0.00010098,2]
[400486577,1767654632180,-800.71,0.000101,2]
[400486579,1767654632189,-800.71,0.000106,2]
[400486581,1767654632198,-300.0,0.00010811,2]
[400486583,1767654632207,-300.0,0.00010811,2]
[400486585,1767654632217,-284.05314254,0.00010811,2]
[400486684,1767654638132,-15.94685746,0.00010811,2]
[400486685,1767654638141,-300.0,0.00010811,2]
[400486686,1767654638151,-175.72303264,0.00010811,2]
[400486687,1767654638248,-124.27696736,0.00010811,2]
[400486688,1767654638258,-300.0,0.00010811,2]
[400486689,1767654638268,-300.0,0.00010811,2]
[400486690,1767654638277,-300.0,0.00010811,2]
[400486691,1767654638287,-300.0,0.00010811,2]
[400486692,1767654638296,-300.0,0.00010811,2]
[400486693,1767654638305,-300.0,0.00010811,2]
[400486694,1767654638314,-300.0,0.00010811,2]
[400486695,1767654638324,-300.0,0.00010811,2]
[400486696,1767654638333,-300.0,0.00010811,2]
[400486697,1767654638342,-300.0,0.00010811,2]
[400486698,1767654638352,-1680.0,0.00010944,2]
[400486699,1767654638362,-420.0,0.00010944,2]
[400486700,1767654638372,-500.0,0.00010945,2]
[400486701,1767654638381,-500.0,0.00010945,2]
[400486702,1767654638390,-500.0,0.00010945,2]
[400486703,1767654638399,-611.21301452,0.00010945,2]
[400486704,1767654638409,-1680.0,0.00010946,2]
[400486705,1767654638420,-988.45,0.00011,2]
[400486706,1767654638430,-800.71,0.00011,2]
[400486707,1767654638439,-500.0,0.00011279,2]
[400486708,1767654638451,-500.0,0.00011279,2]
[400486709,1767654638461,-332.72908901,0.000114,2]
[400486710,1767654638471,-800.71,0.000114,2]
[400486711,1767654638481,-500.0,0.00011416,2]
[400486712,1767654638632,-500.0,0.00011416,2]
[400486713,1767654638642,-2467.72461868,0.00011418,2]
[400486714,1767654638652,-600.0,0.00011422,2]
[400486715,1767654638661,-515.45863679,0.00011521,2]
[400486716,1767654638671,-515.45863678,0.00011538,2]
[400486717,1767654638681,-151.0,0.00011546,2]
[400486718,1767654638690,-151.0,0.00011546,2]
[400486719,1767654638700,-151.0,0.00011546,2]
[400486720,1767654638710,-301.7877781,0.00011546,2]
[400486721,1767654638719,-500.0,0.00011553,2]
[400486722,1767654638729,-500.0,0.00011553,2]
[400486723,1767654638738,-500.0,0.00011553,2]
[400486724,1767654638748,-500.0,0.00011553,2]
[400486725,1767654638758,-150.71912448,0.00011553,2]
[400486726,1767654638768,-175.11319424,0.00011553,2]
[400486727,1767654638777,-500.0,0.00011553,2]
[400486728,1767654638786,-259.581475,0.00011553,2]
[400486729,1767654638796,-500.0,0.00011553,2]
[400486730,1767654638805,-500.0,0.00011553,2]
[400486731,1767654638814,-500.0,0.00011553,2]
[400486732,1767654638824,-500.0,0.00011553,2]
[400486733,1767654638833,-500.0,0.00011553,2]
[400486734,1767654638843,-500.0,0.00011553,2]
[400486735,1767654638852,-500.0,0.00011553,2]
[400486736,1767654638861,-500.0,0.00011553,2]
[400486737,1767654638870,-160.36297885,0.00011553,2]
[400486738,1767654638880,-515.45863678,0.00011556,2]
[400486739,1767654638889,-4087.07894295,0.00011559,2]
[400486740,1767654638899,-515.45863678,0.00011573,2]
[400486741,1767654638908,-216.3175234,0.00011588,2]
[400486742,1767654638918,-515.45863678,0.0001159,2]
[400486743,1767654638927,-161.3901574,0.00011594,2]
[400486744,1767654638937,-153.7360883,0.00011606,2]
[400486745,1767654638946,-225.355,0.00011606,2]
[400486746,1767654638955,-183.62270644,0.00011606,2]
[400486747,1767654638965,-1516.25746506,0.0001161,2]
[400486748,1767654638974,-500.0,0.0001162,2]
[400486749,1767654638983,-500.0,0.0001162,2]
[400486750,1767654638992,-500.0,0.0001162,2]
[400486751,1767654639002,-500.0,0.0001162,2]
[400486752,1767654639012,-500.0,0.0001162,2]
[400486753,1767654639021,-500.0,0.0001162,2]
[400486754,1767654639031,-500.0,0.0001162,2]
[400486755,1767654639041,-190.72141384,0.0001162,2]
[400486756,1767654639050,-500.0,0.0001162,2]
[400486757,1767654639059,-500.0,0.0001162,2]
[400486758,1767654639068,-191.93325424,0.0001162,2]
[400486759,1767654639078,-500.0,0.0001162,2]
[400486760,1767654639087,-500.0,0.0001162,2]
[400486761,1767654639097,-500.0,0.0001162,2]
[400486762,1767654639106,-500.0,0.0001162,2]
[400486763,1767654639116,-500.0,0.0001162,2]
[400486764,1767654639126,-500.0,0.0001162,2]
[400486765,1767654639136,-500.0,0.0001162,2]
[400486766,1767654639145,-500.0,0.0001162,2]
[400486767,1767654639155,-229.16276505,0.0001162,2]
[400486768,1767654639164,-500.0,0.0001162,2]
[400486769,1767654639174,-500.0,0.0001162,2]
[400486770,1767654639182,-500.0,0.0001162,2]
[400486771,1767654639192,-500.0,0.0001162,2]
[400486772,1767654639201,-500.0,0.0001162,2]
[400486773,1767654639210,-550.0,0.0001162,2]
[400486774,1767654639219,-500.0,0.0001162,2]
[400486775,1767654639229,-500.0,0.0001162,2]
[400486776,1767654639239,-103882.96824108,0.00011625,2]
[400486777,1767654639365,-4023.56816462,0.00011625,2]
[400486778,1767654639376,-8033.80454681,0.00011625,2]
[400486787,1767654640479,-3e-08,0.00011625,2]
[400486788,1767654642106,500.0,0.00030136,120]
[400486789,1767654642191,500.0,0.00030136,120]
[400486796,1767654646197,-293.02027726,0.00011279,2]
[400486797,1767654646211,-206.97972274,0.00011279,2]
[400486798,1767654646222,-500.0,0.00011279,2]
[400486799,1767654646234,-500.0,0.00011279,2]
[400486800,1767654646244,-500.0,0.00011279,2]
[400486801,1767654646260,-500.0,0.00011279,2]
[400486802,1767654646272,-601.31326589,0.00011416,2]
[400486803,1767654646285,-350.73198723,0.00011416,2]
[400486804,1767654646299,-149.26801277,0.00011416,2]
[400486805,1767654646311,-500.0,0.00011416,2]
[400486806,1767654646322,-515.26271876,0.00011416,2]
[400486807,1767654646334,-500.0,0.00011416,2]
[400486808,1767654646346,-500.0,0.00011553,2]
[400486809,1767654646358,-500.0,0.00011553,2]
[400486810,1767654646371,-500.0,0.00011553,2]
[400486811,1767654646381,-15629.41696419,0.00011625,2]
[400486812,1767654647024,500.0,0.00030136,120]
[400486813,1767654650529,500.0,0.00030136,120]
[400486814,1767654665042,500.0,0.00030136,120]
[400486815,1767654665112,532.74972509,0.00030136,120]
[400486816,1767654666787,500.0,0.00030136,120]
[400486817,1767654667114,470.79,0.00030136,120]
[400486818,1767654698897,500.0,0.00030136,120]
[400486819,1767654699129,284.35,0.00030136,120]
[400486820,1767654710899,500.0,0.00030136,120]
[400486821,1767654757259,-588.25796789,9.3e-05,2]
[400486822,1767654998411,-215.63096744,9.3e-05,2]
[400486823,1767655000947,-282.42011266,9.3e-05,2]
[400486824,1767655116735,-289.56437387,9.3e-05,2]
[400486825,1767655120445,-336.97786078,9.3e-05,2]
[400486826,1767655208411,-284.05432992,9.3e-05,2]
[400486854,1767655832219,-173.38,9.3e-05,2]
[400486855,1767655832230,-289.75115085,9.4e-05,2]
[400486856,1767655832239,-173.38,9.7e-05,2]
[400486857,1767655832249,-173.38,0.000101,2]
[400486858,1767655832258,-66.00789501,0.00010466,2]
[400486859,1767655832270,-1118.09400528,0.00010466,2]
[400486860,1767655832280,-173.38,0.000106,2]
[400486861,1767655832289,-173.38,0.00011,2]
[400486862,1767655832298,-156.55,0.00011017,2]
[400486863,1767655832308,-243.07235584,0.00011398,2]
[400486864,1767655832321,-956.92764416,0.00011398,2]
[400486865,1767655832332,-723.0,0.00011399,2]
[400486866,1767655832341,-300.0,0.00011399,2]
[400486867,1767655832350,-300.0,0.00011399,2]
[400486868,1767655832359,-299.0,0.00011399,2]
[400486869,1767655832369,-193.1599807,0.000114,2]
[400486870,1767655832378,-221.0,0.000114,2]
[400486871,1767655832387,-341.906358,0.000114,2]
[400486872,1767655832398,-173.38,0.000114,2]
[400486873,1767655832407,-500.0,0.00011416,2]
[400486874,1767655832416,-500.0,0.00011416,2]
[400486875,1767655832425,-500.0,0.00011416,2]
[400486876,1767655832434,-500.0,0.00011416,2]
[400486877,1767655832443,-1741.55232518,0.00011453,2]
[400486878,1767655832455,-500.0,0.00011523,2]
[400486879,1767655832464,-500.0,0.00011523,2]
[400486880,1767655832473,-287.59897413,0.00011523,2]
[400486881,1767655832482,-999.24742259,0.00011524,2]
[400486882,1767655832491,-334.35327797,0.00011524,2]
[400486883,1767655832501,-500.0,0.00011524,2]
[400486884,1767655832510,-195.41393553,0.00011524,2]
[400486885,1767655832519,-500.0,0.00011524,2]
[400486886,1767655832528,-500.0,0.00011524,2]
[400486887,1767655832538,-500.0,0.00011524,2]
[400486888,1767655832547,-500.0,0.00011524,2]
[400486889,1767655832556,-500.0,0.00011524,2]
[400486890,1767655832565,-500.0,0.00011524,2]
[400486891,1767655832574,-500.0,0.00011524,2]
[400486892,1767655832583,-500.0,0.00011524,2]
[400486893,1767655832592,-500.0,0.00011524,2]
[400486894,1767655832602,-500.0,0.00011524,2]
[400486895,1767655832610,-500.0,0.00011524,2]
[400486896,1767655832619,-500.0,0.00011524,2]
[400486897,1767655832628,-500.0,0.00011524,2]
[400486898,1767655832637,-350.0,0.00011524,2]
[400486899,1767655832646,-211.673,0.00011524,2]
[400486900,1767655832655,-797.46134395,0.00011525,2]
[400486915,1767655838317,-1843.66700258,0.00011525,2]
[400486917,1767655838330,-1496.92909725,0.00011525,2]
[400486919,1767655838341,-701.04263271,0.00011525,2]
[400486922,1767655838359,-301.09693046,0.00011525,2]
[400486991,1767655840387,-29584.86139942,0.00011525,2]
[400486992,1767655840402,-671.77936835,0.00011525,2]
[400486993,1767655840492,-7687.92570296,0.00011525,2]
[400487038,1767655845039,-500.0,0.00011523,2]
[400487039,1767655845049,-8844.30839235,0.00011525,2]
[400487041,1767655846289,-49695.0915975,0.00011525,2]
[400487042,1767655846383,-10372.29228187,0.00011525,2]
[400487060,1767656522851,165.67415963,0.00023083,120]
[400487083,1767657024454,227.0,0.00030136,120]
[400487105,1767657032347,-550.0,9.3e-05,2]
[400487106,1767657032358,-100.02727789,9.3e-05,2]
[400487107,1767657032380,-52.55272211,9.3e-05,2]
[400487108,1767657032389,-286.20062276,9.35e-05,2]
[400487109,1767657032399,-152.58,9.7e-05,2]
[400487110,1767657032408,-152.58,0.000101,2]
[400487111,1767657032418,-1169.84957555,0.000106,2]
[400487112,1767657032428,-152.58,0.000106,2]
[400487113,1767657032438,-206.99144168,0.00010811,2]
[400487114,1767657032448,-250.0,0.00010946,2]
[400487115,1767657032457,-443.7628353,0.00010959,2]
[400487116,1767657032467,-152.58,0.00011,2]
[400487117,1767657032477,-169.339,0.00011196,2]
[400487119,1767657032487,-1200.0,0.00011322,2]
[400487121,1767657032496,-300.0,0.00011323,2]
[400487123,1767657032506,-300.0,0.00011323,2]
[400487126,1767657032516,-5914.56068234,0.00011324,2]
[400487128,1767657032528,-12572.56,0.00011324,2]
[400487130,1767657032540,-31075.09835662,0.00011324,2]
[400487166,1767657038368,-1577.33909433,0.00011324,2]
[400487168,1767657038379,-7049.96099586,0.00011324,2]
[400487172,1767657038407,-1040.1369001,0.00011324,2]
[400487174,1767657038419,-1619.38572393,0.00011324,2]
[400487176,1767657038430,-2905.13,0.00011324,2]
[400487391,1767657040656,-1119.50542007,0.00011324,2]
[400487393,1767657040668,-1795.85138465,0.00011324,2]
[400487395,1767657040679,-190071.70704228,0.00011324,2]
[400487397,1767657040690,-305.51244571,0.00011324,2]
[400487400,1767657040701,-19231.90810616,0.00011324,2]
[400487402,1767657040711,-14802.23944553,0.00011324,2]
[400487469,1767657045206,-379.91513773,0.00011324,2]
[400487470,1767657045218,-9047.05196821,0.00011324,2]
[400487471,1767657045229,-600.0,0.00011324,2]
[400487473,1767657046162,-1318.70184405,0.00011324,2]
[400487474,1767657046175,-30879.06186744,0.00011324,2]
[400487475,1767657046186,-5053.05608969,0.00011324,2]
[400487478,1767657046479,-9392.7,0.00011324,2]
[400487479,1767657046613,-1998.0421011,0.00011324,2]
[400487512,1767657551517,155.0,2e-05,2]
[400487522,1767657908244,-300.0,9.299e-05,2]
[400487523,1767657908269,-22.17311264,9.299e-05,2]
[400487524,1767657912437,-277.82688736,9.299e-05,2]
[400487525,1767657912461,-174.18173152,9.299e-05,2]
[400487526,1767657919307,-168.31264618,9.299e-05,2]
[400487527,1767657928481,-492.5186058,9.299e-05,2]
[400487528,1767657930135,-157.49504482,9.299e-05,2]
[400487530,1767657966767,-207.49197168,9.299e-05,2]
[400487531,1767657966791,-4.06901173,9.299e-05,2]
[400487532,1767657968958,-232.04025047,9.299e-05,2]
[400487534,1767657981748,-63.8907378,9.299e-05,2]
[400487535,1767657981773,-205.4897688,9.3e-05,2]
[400487536,1767657997744,686.69184109,0.0003,120]
[400487537,1767658026456,293.37341314,9.269e-05,2]
[400487538,1767658026727,-155.29460028,9.299e-05,2]
[400487540,1767658086814,-300.0,9.299e-05,2]
[400487541,1767658086838,-38.46293423,9.3e-05,2]
[400487542,1767658090342,154.03394149,0.0003,120]
[400487543,1767658098963,333.33333333,0.0003,120]
[400487546,1767658134143,1703.6786722,0.0003,120]
[400487547,1767658144393,500.0,0.00030136,120]
[400487548,1767658144720,500.0,0.00030136,120]
[400487549,1767658144944,500.0,0.00030136,120]
[400487550,1767658145183,500.0,0.00030136,120]
[400487551,1767658145427,500.0,0.00030136,120]
[400487552,1767658145660,500.0,0.00030136,120]
[400487553,1767658146005,500.0,0.00030136,120]
[400487554,1767658146197,500.0,0.00030136,120]
[400487555,1767658146461,500.0,0.00030136,120]
[400487556,1767658146716,499.0000001,0.00030136,120]
[400487557,1767658146807,-180.71406108,9.299e-05,2]
[400487558,1767658156983,309.52,9.274e-05,2]
[400487559,1767658157014,170.64,8.818e-05,2]